[Event "Live Chess"]
[Site "Chess.com"]
[Date "2023.05.21"]
[Round "-"]
[White "Ferrarifan27"]
[Black "Man-Del-Brot"]
[Result "1-0"]
[WhiteElo "2066"]
[BlackElo "1043"]
[TimeControl "300"]
[EndTime "5:50:20 PDT"]
[Termination "Ferrarifan27 won by resignation"]

1. e4 {[%clk 0:04:58.9]} 1... e5 {[%clk 0:04:57]} 2. Nf3 {[%clk 0:04:57.5]} 2...
Nc6 {[%clk 0:04:55.8]} 3. Bb5 {[%clk 0:04:55.5]} 3... Nge7 {[%clk 0:04:51.1]} 4.
O-O {[%clk 0:04:53.8]} 4... a6 {[%clk 0:04:49.6]} 5. Ba4 {[%clk 0:04:51.5]} 5...
b5 {[%clk 0:04:48.6]} 6. Bb3 {[%clk 0:04:50.3]} 6... h6 {[%clk 0:04:47.8]} 7. d3
{[%clk 0:04:46.2]} 7... d6 {[%clk 0:04:46.9]} 8. Nc3 {[%clk 0:04:41.4]} 8... Bg4
{[%clk 0:04:42.4]} 9. h3 {[%clk 0:04:39.1]} 9... Bh5 {[%clk 0:04:38.6]} 10. Be3
{[%clk 0:04:36.9]} 10... Qd7 {[%clk 0:04:28.9]} 11. a4 {[%clk 0:04:30.9]} 11...
b4 {[%clk 0:04:24.5]} 12. Nd5 {[%clk 0:04:29.7]} 12... Nxd5 {[%clk 0:04:22]} 13.
Bxd5 {[%clk 0:04:29.6]} 13... a5 {[%clk 0:04:15.8]} 14. Qe2 {[%clk 0:04:20.4]}
14... Be7 {[%clk 0:04:07.2]} 15. c3 {[%clk 0:04:12.6]} 15... bxc3 {[%clk
0:03:59.6]} 16. bxc3 {[%clk 0:04:12.5]} 16... Bf6 {[%clk 0:03:52]} 17. Rfb1
{[%clk 0:04:08]} 17... O-O {[%clk 0:03:48]} 18. Rb7 {[%clk 0:04:03.5]} 18...
Rab8 {[%clk 0:03:44.6]} 19. Rab1 {[%clk 0:04:02.8]} 19... Rxb7 {[%clk
0:03:43.2]} 20. Rxb7 {[%clk 0:04:01.8]} 20... Rb8 {[%clk 0:03:34.9]} 21. Bxc6
{[%clk 0:04:00.5]} 21... Bxf3 {[%clk 0:03:24.6]} 22. Rxb8+ {[%clk 0:03:51.5]}
22... Kh7 {[%clk 0:03:21]} 23. Bxd7 {[%clk 0:03:48.7]} 23... Bxe2 {[%clk
0:03:19.6]} 24. d4 {[%clk 0:03:45.2]} 24... exd4 {[%clk 0:03:12.8]} 25. cxd4
{[%clk 0:03:43.8]} 25... Bd3 {[%clk 0:03:04.7]} 26. f3 {[%clk 0:03:41.1]} 26...
g5 {[%clk 0:01:52.8]} 27. Bf5+ {[%clk 0:03:36.5]} 27... Kg7 {[%clk 0:01:50.5]}
28. g4 {[%clk 0:03:32.8]} 28... Bc2 {[%clk 0:01:41.8]} 29. e5 {[%clk 0:03:24.8]}
29... Bxf5 {[%clk 0:01:33.8]} 30. exf6+ {[%clk 0:03:22.2]} 30... Kxf6 {[%clk
0:01:30.5]} 31. gxf5 {[%clk 0:03:20.2]} 31... Kxf5 {[%clk 0:01:29.5]} 32. Rb7
{[%clk 0:03:18.4]} 32... c6 {[%clk 0:01:25.1]} 33. Rxf7+ {[%clk 0:03:16.6]}
33... Kg6 {[%clk 0:01:21.2]} 34. Rd7 {[%clk 0:03:14.8]} 1-0

[Event "Live Chess"]
[Site "Chess.com"]
[Date "2023.05.21"]
[Round "-"]
[White "ViktorTheCoolBoy"]
[Black "RockTroll"]
[Result "0-1"]
[WhiteElo "2459"]
[BlackElo "2240"]
[TimeControl "300"]
[EndTime "5:50:20 PDT"]
[Termination "RockTroll won by resignation"]

1. b3 {[%clk 0:04:58.2]} 1... d5 {[%clk 0:04:55.5]} 2. Bb2 {[%clk 0:04:57.3]}
2... Nf6 {[%clk 0:04:54.4]} 3. e3 {[%clk 0:04:56.6]} 3... e6 {[%clk 0:04:53.1]}
4. Nf3 {[%clk 0:04:56.1]} 4... c5 {[%clk 0:04:52]} 5. c4 {[%clk 0:04:55.4]} 5...
Nc6 {[%clk 0:04:50.6]} 6. cxd5 {[%clk 0:04:54.4]} 6... exd5 {[%clk 0:04:49.9]}
7. Bb5 {[%clk 0:04:53.1]} 7... Bd6 {[%clk 0:04:48.1]} 8. O-O {[%clk 0:04:51]}
8... O-O {[%clk 0:04:46.6]} 9. d4 {[%clk 0:04:48.1]} 9... cxd4 {[%clk
0:04:45.7]} 10. Nxd4 {[%clk 0:04:45.9]} 10... Bc7 {[%clk 0:04:42.6]} 11. Nd2
{[%clk 0:04:41]} 11... Qd6 {[%clk 0:04:38.9]} 12. N2f3 {[%clk 0:04:38.1]} 12...
Bg4 {[%clk 0:04:36.8]} 13. g3 {[%clk 0:04:28.6]} 13... Ne4 {[%clk 0:04:15.1]}
14. Kg2 {[%clk 0:04:25.1]} 14... Qh6 {[%clk 0:03:56.2]} 15. Qd3 {[%clk
0:04:12.3]} 15... Bh3+ {[%clk 0:03:51.5]} 16. Kg1 {[%clk 0:04:10]} 16... Bxf1
{[%clk 0:03:50.4]} 17. Rxf1 {[%clk 0:04:08.5]} 17... Ne5 {[%clk 0:03:33.9]} 18.
Nxe5 {[%clk 0:04:04.2]} 18... Bxe5 {[%clk 0:03:32.5]} 19. Nf5 {[%clk 0:04:02.2]}
19... Qf6 {[%clk 0:03:31]} 20. Bxe5 {[%clk 0:03:57.8]} 20... Qxe5 {[%clk
0:03:30.4]} 21. Qxd5 {[%clk 0:03:57.2]} 21... Qxd5 {[%clk 0:03:27.5]} 22. Ne7+
{[%clk 0:03:56.7]} 22... Kh8 {[%clk 0:03:27.1]} 23. Nxd5 {[%clk 0:03:56.5]}
23... Rfd8 {[%clk 0:03:23.3]} 24. Nf4 {[%clk 0:03:53.7]} 24... Rd2 {[%clk
0:03:20.5]} 25. Be2 {[%clk 0:03:48.1]} 25... g5 {[%clk 0:03:16.8]} 26. Bf3
{[%clk 0:03:46.5]} 26... gxf4 {[%clk 0:03:15.3]} 27. Bxe4 {[%clk 0:03:45.6]}
27... fxe3 {[%clk 0:03:11.7]} 28. fxe3 {[%clk 0:03:45.5]} 28... Re8 {[%clk
0:03:09.7]} 29. Bxb7 {[%clk 0:03:42.7]} 29... Rxe3 {[%clk 0:03:08.1]} 30. Rf2
{[%clk 0:03:41.4]} 30... Re1+ {[%clk 0:03:02.4]} 31. Kg2 {[%clk 0:03:40.1]}
31... Red1 {[%clk 0:03:02]} 32. a4 {[%clk 0:03:30.6]} 32... Rxf2+ {[%clk
0:03:01.1]} 33. Kxf2 {[%clk 0:03:29.5]} 33... Rd2+ {[%clk 0:03:00.7]} 34. Kg1
{[%clk 0:03:28]} 34... Kg7 {[%clk 0:03:00.1]} 35. Be4 {[%clk 0:03:26.2]} 35...
h6 {[%clk 0:02:58.3]} 36. h4 {[%clk 0:03:25.3]} 36... Kf6 {[%clk 0:02:57.4]} 37.
Kf1 {[%clk 0:03:20.8]} 37... Ke5 {[%clk 0:02:55.9]} 38. Bf3 {[%clk 0:03:15.6]}
38... Kd4 {[%clk 0:02:43.9]} 39. Bh5 {[%clk 0:03:11.9]} 39... f6 {[%clk
0:02:42.2]} 40. Ke1 {[%clk 0:03:10.2]} 40... Ke3 {[%clk 0:02:40.8]} 41. Bf7
{[%clk 0:03:08.3]} 41... Rg2 {[%clk 0:02:38.9]} 42. Kf1 {[%clk 0:02:53.2]} 42...
Rxg3 {[%clk 0:02:38]} 43. h5 {[%clk 0:02:52.7]} 43... Rg7 {[%clk 0:02:32.4]} 44.
Bc4 {[%clk 0:02:48.5]} 44... f5 {[%clk 0:02:30.4]} 45. Be6 {[%clk 0:02:43.7]}
45... f4 {[%clk 0:02:29.4]} 46. b4 {[%clk 0:02:41.9]} 46... f3 {[%clk
0:02:28.6]} 47. Bd5 {[%clk 0:02:38.9]} 47... Rc7 {[%clk 0:02:27.4]} 48. Kg1
{[%clk 0:02:37.2]} 48... Rc1+ {[%clk 0:02:25.2]} 0-1

[Event "Live Chess"]
[Site "Chess.com"]
[Date "2023.05.21"]
[Round "-"]
[White "GEMdzq"]
[Black "Chesscoach_Golichenko"]
[Result "0-1"]
[WhiteElo "2259"]
[BlackElo "2620"]
[TimeControl "300"]
[EndTime "5:50:48 PDT"]
[Termination "Chesscoach_Golichenko won by resignation"]

1. e4 {[%clk 0:04:57.9]} 1... Nf6 {[%clk 0:04:53.4]} 2. e5 {[%clk 0:04:56.1]}
2... Nd5 {[%clk 0:04:51.2]} 3. d4 {[%clk 0:04:52.7]} 3... d6 {[%clk 0:04:47.1]}
4. Nf3 {[%clk 0:04:49.9]} 4... g6 {[%clk 0:04:43.1]} 5. Bc4 {[%clk 0:04:47]}
5... c6 {[%clk 0:04:42.3]} 6. O-O {[%clk 0:04:44.4]} 6... Bg7 {[%clk 0:04:40.6]}
7. Re1 {[%clk 0:04:37.9]} 7... O-O {[%clk 0:04:38.2]} 8. Bg5 {[%clk 0:04:34.6]}
8... dxe5 {[%clk 0:04:28.1]} 9. dxe5 {[%clk 0:04:26.1]} 9... Qc7 {[%clk
0:04:26.5]} 10. Nc3 {[%clk 0:04:10.4]} 10... Nxc3 {[%clk 0:04:22.2]} 11. bxc3
{[%clk 0:04:10.3]} 11... e6 {[%clk 0:04:13.6]} 12. Qd2 {[%clk 0:04:00.5]} 12...
b5 {[%clk 0:04:10.8]} 13. Bb3 {[%clk 0:03:57.4]} 13... Na6 {[%clk 0:04:06.8]}
14. a4 {[%clk 0:03:54.3]} 14... Nc5 {[%clk 0:04:04.7]} 15. axb5 {[%clk
0:03:51.9]} 15... cxb5 {[%clk 0:04:04.6]} 16. Bf6 {[%clk 0:03:37.1]} 16... Bb7
{[%clk 0:03:56.3]} 17. Bxg7 {[%clk 0:03:20.5]} 17... Kxg7 {[%clk 0:03:56.2]} 18.
Qf4 {[%clk 0:03:19.4]} 18... Nxb3 {[%clk 0:03:33.3]} 19. cxb3 {[%clk 0:03:19.3]}
19... Qxc3 {[%clk 0:03:32.1]} 20. Ng5 {[%clk 0:02:37.5]} 20... a5 {[%clk
0:02:50.5]} 21. Rac1 {[%clk 0:02:33]} 21... Qb4 {[%clk 0:02:45.9]} 22. Qf6+
{[%clk 0:02:13]} 22... Kg8 {[%clk 0:02:32.1]} 23. Nxh7 {[%clk 0:01:57.3]} 23...
Qg4 {[%clk 0:01:33.9]} 24. Qg5 {[%clk 0:01:23.9]} 24... Qxg5 {[%clk 0:01:25.2]}
25. Nxg5 {[%clk 0:01:23.8]} 25... Rfc8 {[%clk 0:01:21.2]} 26. f3 {[%clk
0:01:07.6]} 26... Bd5 {[%clk 0:01:09.8]} 27. Rxc8+ {[%clk 0:01:02.5]} 27... Rxc8
{[%clk 0:01:06.8]} 28. Ra1 {[%clk 0:01:02.1]} 28... Ra8 {[%clk 0:01:03.4]} 29.
Ne4 {[%clk 0:00:55.2]} 29... Bxb3 {[%clk 0:00:57.9]} 30. Kf2 {[%clk 0:00:30.7]}
30... a4 {[%clk 0:00:53.3]} 31. Nc5 {[%clk 0:00:30]} 31... Bc4 {[%clk
0:00:46.6]} 32. Ke3 {[%clk 0:00:29.4]} 32... a3 {[%clk 0:00:42.7]} 33. Kd4
{[%clk 0:00:28.3]} 33... a2 {[%clk 0:00:30.7]} 34. Kc3 {[%clk 0:00:25.8]} 34...
Rd8 {[%clk 0:00:28.2]} 35. Rc1 {[%clk 0:00:20.2]} 35... Rd5 {[%clk 0:00:26.1]}
36. Nb3 {[%clk 0:00:19]} 36... Rd3+ {[%clk 0:00:24]} 37. Kb2 {[%clk 0:00:16.2]}
37... Rxb3+ {[%clk 0:00:23.9]} 38. Ka1 {[%clk 0:00:15.6]} 38... Rb1+ {[%clk
0:00:21.7]} 39. Rxb1 {[%clk 0:00:15.1]} 39... axb1=Q+ {[%clk 0:00:21.6]} 40.
Kxb1 {[%clk 0:00:14.9]} 40... Kf8 {[%clk 0:00:21.1]} 0-1

[Event "Live Chess"]
[Site "Chess.com"]
[Date "2023.05.21"]
[Round "-"]
[White "AyannaTang"]
[Black "MartinWalker4"]
[Result "0-1"]
[WhiteElo "212"]
[BlackElo "2054"]
[TimeControl "300"]
[EndTime "5:50:53 PDT"]
[Termination "MartinWalker4 won by checkmate"]

1. e4 {[%clk 0:04:57.6]} 1... Nf6 {[%clk 0:04:57.9]} 2. Nc3 {[%clk 0:04:54.1]}
2... d5 {[%clk 0:04:55.8]} 3. exd5 {[%clk 0:04:52.1]} 3... Nxd5 {[%clk
0:04:54.2]} 4. Nxd5 {[%clk 0:04:50.8]} 4... Qxd5 {[%clk 0:04:52.2]} 5. d4 {[%clk
0:04:46.3]} 5... Nc6 {[%clk 0:04:45.2]} 6. Nf3 {[%clk 0:04:30.6]} 6... Bg4
{[%clk 0:04:42.6]} 7. h3 {[%clk 0:03:52.1]} 7... Bxf3 {[%clk 0:04:40.2]} 8. gxf3
{[%clk 0:03:49.5]} 8... Nxd4 {[%clk 0:04:36]} 9. c3 {[%clk 0:03:45.7]} 9...
Nxf3+ {[%clk 0:04:33.4]} 10. Ke2 {[%clk 0:03:34.2]} 10... Qxd1+ {[%clk
0:04:31.6]} 11. Kxd1 {[%clk 0:03:32.2]} 11... O-O-O+ {[%clk 0:04:30.4]} 12. Bd2
{[%clk 0:03:30.1]} 12... Rxd2+ {[%clk 0:04:27.9]} 13. Kc1 {[%clk 0:03:28.5]}
13... Rxf2 {[%clk 0:04:26.7]} 14. h4 {[%clk 0:03:18.5]} 14... e6 {[%clk
0:04:22.3]} 15. h5 {[%clk 0:03:16.5]} 15... Bc5 {[%clk 0:04:19.9]} 16. b4 {[%clk
0:03:13.1]} 16... Be3+ {[%clk 0:04:17.1]} 17. Kd1 {[%clk 0:03:09.2]} 17... Rd8+
{[%clk 0:04:14.5]} 18. Bd3 {[%clk 0:03:03.3]} 18... Rxd3# {[%clk 0:04:13.1]} 0-1

[Event "Live Chess"]
[Site "Chess.com"]
[Date "2023.05.21"]
[Round "-"]
[White "WelshTiger"]
[Black "The_Straightforward_Rook"]
[Result "1-0"]
[WhiteElo "2303"]
[BlackElo "1976"]
[TimeControl "300"]
[EndTime "5:51:35 PDT"]
[Termination "WelshTiger won by resignation"]

1. e4 {[%clk 0:04:57.7]} 1... e5 {[%clk 0:04:56.6]} 2. Nf3 {[%clk 0:04:56.5]}
2... Nc6 {[%clk 0:04:53.9]} 3. d4 {[%clk 0:04:55.6]} 3... exd4 {[%clk
0:04:52.6]} 4. Bc4 {[%clk 0:04:54.8]} 4... Bc5 {[%clk 0:04:50.9]} 5. c3 {[%clk
0:04:51.6]} 5... Nf6 {[%clk 0:04:48.8]} 6. e5 {[%clk 0:04:50.2]} 6... Ne4 {[%clk
0:04:46.4]} 7. cxd4 {[%clk 0:04:29]} 7... Bb4+ {[%clk 0:04:45.6]} 8. Nbd2 {[%clk
0:04:27.3]} 8... d5 {[%clk 0:04:44.1]} 9. Bd3 {[%clk 0:04:22.9]} 9... Bg4 {[%clk
0:04:39.4]} 10. h3 {[%clk 0:04:20.5]} 10... Bxf3 {[%clk 0:04:35.7]} 11. gxf3
{[%clk 0:04:19.5]} 11... Nxd2 {[%clk 0:04:35.6]} 12. Bxd2 {[%clk 0:04:16.2]}
12... Bxd2+ {[%clk 0:04:33.1]} 13. Qxd2 {[%clk 0:04:15.2]} 13... Nxd4 {[%clk
0:04:32.4]} 14. Qe3 {[%clk 0:04:13.9]} 14... c5 {[%clk 0:04:30.1]} 15. b4 {[%clk
0:04:04.7]} 15... b6 {[%clk 0:04:13.3]} 16. Rc1 {[%clk 0:04:00.9]} 16... Rc8
{[%clk 0:04:08.1]} 17. Rg1 {[%clk 0:03:59.4]} 17... Ne6 {[%clk 0:04:02.5]} 18.
Bf5 {[%clk 0:03:57]} 18... O-O {[%clk 0:03:54.3]} 19. Qh6 {[%clk 0:03:49.5]}
19... Qe7 {[%clk 0:03:38.4]} 20. bxc5 {[%clk 0:03:42.2]} 20... g6 {[%clk
0:03:34.1]} 21. c6 {[%clk 0:03:20.3]} 21... Qb4+ {[%clk 0:02:23.3]} 22. Kf1
{[%clk 0:03:19]} 22... Rxc6 {[%clk 0:02:05]} 23. Rxc6 {[%clk 0:03:06.1]} 23...
Qb5+ {[%clk 0:02:04.1]} 24. Kg2 {[%clk 0:03:02.5]} 24... Qxc6 {[%clk 0:02:03.6]}
25. Rc1 {[%clk 0:03:01.5]} 25... Nc5 {[%clk 0:01:59.6]} 26. Bb1 {[%clk
0:02:54.4]} 26... Qe6 {[%clk 0:01:56.4]} 27. f4 {[%clk 0:02:50.6]} 27... f5
{[%clk 0:01:53.3]} 28. h4 {[%clk 0:02:48.4]} 28... d4 {[%clk 0:01:47.4]} 29. h5
{[%clk 0:02:45.8]} 29... gxh5 {[%clk 0:01:44.3]} 30. Qxe6+ {[%clk 0:02:34.8]}
30... Nxe6 {[%clk 0:01:42.9]} 31. Kf3 {[%clk 0:02:34.6]} 31... Nc5 {[%clk
0:01:41.1]} 32. Rd1 {[%clk 0:02:26.2]} 32... Rd8 {[%clk 0:01:38.4]} 33. Bxf5
{[%clk 0:02:25.1]} 33... Kf7 {[%clk 0:01:29.3]} 34. Bxh7 {[%clk 0:02:23.5]}
34... Ke6 {[%clk 0:01:25.5]} 35. Bg6 {[%clk 0:02:17.4]} 35... h4 {[%clk
0:01:19.4]} 36. Bh5 {[%clk 0:02:11.6]} 36... Kd5 {[%clk 0:01:17.1]} 37. Bf7+
{[%clk 0:02:06.6]} 37... Kc6 {[%clk 0:01:14.4]} 38. e6 {[%clk 0:02:05.9]} 1-0

[Event "Live Chess"]
[Site "Chess.com"]
[Date "2023.05.21"]
[Round "-"]
[White "jbooth"]
[Black "JoeRoot66"]
[Result "1-0"]
[WhiteElo "1721"]
[BlackElo "1889"]
[TimeControl "300"]
[EndTime "5:51:36 PDT"]
[Termination "jbooth won by resignation"]

1. e4 {[%clk 0:04:55.9]} 1... c6 {[%clk 0:04:59.3]} 2. d4 {[%clk 0:04:53]} 2...
d5 {[%clk 0:04:59.2]} 3. Nc3 {[%clk 0:04:50.6]} 3... dxe4 {[%clk 0:04:58.6]} 4.
Nxe4 {[%clk 0:04:50]} 4... Nf6 {[%clk 0:04:58.4]} 5. Nxf6+ {[%clk 0:04:48.5]}
5... exf6 {[%clk 0:04:58.3]} 6. c3 {[%clk 0:04:46.7]} 6... Bd6 {[%clk
0:04:58.2]} 7. Bd3 {[%clk 0:04:44.8]} 7... O-O {[%clk 0:04:58.1]} 8. Ne2 {[%clk
0:04:43.4]} 8... Re8 {[%clk 0:04:57.5]} 9. O-O {[%clk 0:04:42.6]} 9... Nd7
{[%clk 0:04:56.3]} 10. Bf4 {[%clk 0:04:40.9]} 10... Nf8 {[%clk 0:04:53.8]} 11.
Bxd6 {[%clk 0:04:39.2]} 11... Qxd6 {[%clk 0:04:52.3]} 12. Qc2 {[%clk 0:04:35]}
12... Be6 {[%clk 0:04:49]} 13. Rae1 {[%clk 0:04:28.9]} 13... Rad8 {[%clk
0:04:44.2]} 14. Ng3 {[%clk 0:04:20]} 14... c5 {[%clk 0:04:41.9]} 15. Bb5 {[%clk
0:04:12.9]} 15... Bd7 {[%clk 0:04:35.1]} 16. Bxd7 {[%clk 0:04:09.7]} 16... Nxd7
{[%clk 0:04:30.6]} 17. dxc5 {[%clk 0:04:08.1]} 17... Qxc5 {[%clk 0:04:23.5]} 18.
Rxe8+ {[%clk 0:03:51.5]} 18... Rxe8 {[%clk 0:04:23.4]} 19. Qd2 {[%clk
0:03:45.2]} 19... Ne5 {[%clk 0:04:19.5]} 20. Re1 {[%clk 0:03:38]} 20... Kf8
{[%clk 0:04:14.2]} 21. Ne4 {[%clk 0:03:31.8]} 21... Qc6 {[%clk 0:04:05.6]} 22.
Qd6+ {[%clk 0:03:25.8]} 22... Qxd6 {[%clk 0:04:02.3]} 23. Nxd6 {[%clk
0:03:24.9]} 23... Re6 {[%clk 0:03:57.9]} 24. Nxb7 {[%clk 0:03:18]} 24... Rb6
{[%clk 0:03:56.2]} 25. Nc5 {[%clk 0:03:11.4]} 25... Rxb2 {[%clk 0:03:54.7]} 26.
f4 {[%clk 0:03:03.8]} 26... Nc4 {[%clk 0:03:48.8]} 27. Nd7+ {[%clk 0:03:02]} 1-0

[Event "Live Chess"]
[Site "Chess.com"]
[Date "2023.05.21"]
[Round "-"]
[White "MarkLim1"]
[Black "JoshMcK"]
[Result "1-0"]
[WhiteElo "1704"]
[BlackElo "1567"]
[TimeControl "300"]
[EndTime "5:51:40 PDT"]
[Termination "MarkLim1 won by resignation"]

1. e4 {[%clk 0:04:58.2]} 1... c6 {[%clk 0:04:58]} 2. d4 {[%clk 0:04:56.2]} 2...
d5 {[%clk 0:04:57.9]} 3. exd5 {[%clk 0:04:55.5]} 3... cxd5 {[%clk 0:04:57.2]} 4.
Bd3 {[%clk 0:04:54.8]} 4... Nf6 {[%clk 0:04:54.3]} 5. Bf4 {[%clk 0:04:49.4]}
5... Nc6 {[%clk 0:04:50]} 6. c3 {[%clk 0:04:48.5]} 6... Bg4 {[%clk 0:04:39.4]}
7. Qb3 {[%clk 0:04:46.7]} 7... Qb6 {[%clk 0:04:31.5]} 8. Qxb6 {[%clk 0:04:43.6]}
8... axb6 {[%clk 0:04:29.7]} 9. Bc7 {[%clk 0:04:42.7]} 9... e5 {[%clk
0:04:15.7]} 10. dxe5 {[%clk 0:04:40]} 10... Ne4 {[%clk 0:04:12.6]} 11. f3 {[%clk
0:04:27.8]} 11... Bc5 {[%clk 0:04:09.5]} 12. fxe4 {[%clk 0:04:16.9]} 12... dxe4
{[%clk 0:04:06.1]} 13. Bxe4 {[%clk 0:04:15.8]} 13... O-O {[%clk 0:04:04.6]} 14.
Nf3 {[%clk 0:04:05]} 14... Rac8 {[%clk 0:04:00.6]} 15. Bd6 {[%clk 0:04:03.8]}
15... Rfe8 {[%clk 0:03:57.5]} 16. Bxc5 {[%clk 0:04:00.9]} 16... bxc5 {[%clk
0:03:56.2]} 17. O-O {[%clk 0:03:58.3]} 17... Bxf3 {[%clk 0:03:54.4]} 18. Bxf3
{[%clk 0:03:55.2]} 18... Nxe5 {[%clk 0:03:53.5]} 19. Bxb7 {[%clk 0:03:50.8]}
19... Rcd8 {[%clk 0:03:52.7]} 20. Na3 {[%clk 0:03:46.3]} 20... Rd2 {[%clk
0:03:51.4]} 21. b3 {[%clk 0:03:34.7]} 21... Nd3 {[%clk 0:03:38.6]} 22. Bd5
{[%clk 0:03:28.5]} 22... Ne5 {[%clk 0:03:27.3]} 23. c4 {[%clk 0:03:23.8]} 23...
g6 {[%clk 0:03:14.4]} 24. Nb5 {[%clk 0:03:21.3]} 24... Kg7 {[%clk 0:03:12.3]}
25. Nd6 {[%clk 0:03:18.3]} 25... Re7 {[%clk 0:03:09.6]} 26. Ne4 {[%clk
0:03:15.4]} 26... Rd4 {[%clk 0:03:05.9]} 27. Nxc5 {[%clk 0:03:14.3]} 27... Ng4
{[%clk 0:02:53.3]} 28. Rad1 {[%clk 0:03:08.3]} 28... Rxd1 {[%clk 0:02:51.6]} 29.
Rxd1 {[%clk 0:03:06.9]} 29... Ne3 {[%clk 0:02:48.6]} 30. Rc1 {[%clk 0:03:02.3]}
30... Nxd5 {[%clk 0:02:46.5]} 31. cxd5 {[%clk 0:03:01.1]} 31... Re5 {[%clk
0:02:41.1]} 32. d6 {[%clk 0:02:58.5]} 32... Rd5 {[%clk 0:02:40.2]} 33. d7 {[%clk
0:02:52.6]} 33... Rd2 {[%clk 0:02:37.9]} 34. Rc3 {[%clk 0:02:46.9]} 34... Rd1+
{[%clk 0:02:32.6]} 35. Kf2 {[%clk 0:02:45.9]} 35... Rd2+ {[%clk 0:02:32.1]} 36.
Ke3 {[%clk 0:02:45]} 36... Rd6 {[%clk 0:02:29.9]} 37. Rd3 {[%clk 0:02:42.7]} 1-0

[Event "Live Chess"]
[Site "Chess.com"]
[Date "2023.05.21"]
[Round "-"]
[White "Greenbecker"]
[Black "hturner40"]
[Result "1-0"]
[WhiteElo "1689"]
[BlackElo "1775"]
[TimeControl "300"]
[EndTime "5:51:42 PDT"]
[Termination "Greenbecker won by resignation"]

1. e4 {[%clk 0:04:58]} 1... Nc6 {[%clk 0:04:59.1]} 2. d4 {[%clk 0:04:55.5]} 2...
e5 {[%clk 0:04:56.8]} 3. Nf3 {[%clk 0:04:52.8]} 3... exd4 {[%clk 0:04:55.1]} 4.
Nxd4 {[%clk 0:04:51.8]} 4... Nf6 {[%clk 0:04:54.7]} 5. Nc3 {[%clk 0:04:50.3]}
5... Nxe4 {[%clk 0:04:52.5]} 6. Nxe4 {[%clk 0:04:47.6]} 6... Qe7 {[%clk
0:04:50.6]} 7. f3 {[%clk 0:04:36.6]} 7... d5 {[%clk 0:04:48.6]} 8. Nxc6 {[%clk
0:04:34.8]} 8... bxc6 {[%clk 0:04:47]} 9. Bd3 {[%clk 0:04:29]} 9... dxe4 {[%clk
0:04:44.1]} 10. Bxe4 {[%clk 0:04:28]} 10... f5 {[%clk 0:04:41.9]} 11. O-O {[%clk
0:04:21.4]} 11... Qc5+ {[%clk 0:04:27.3]} 12. Kh1 {[%clk 0:04:15.4]} 12... fxe4
{[%clk 0:04:22.5]} 13. fxe4 {[%clk 0:04:14.5]} 13... Ba6 {[%clk 0:04:14.8]} 14.
Rf5 {[%clk 0:04:08]} 14... Qd6 {[%clk 0:04:08.7]} 15. Qe1 {[%clk 0:03:55.5]}
15... g6 {[%clk 0:03:25.6]} 16. Bf4 {[%clk 0:03:47.5]} 16... gxf5 {[%clk
0:02:35.3]} 17. Bxd6 {[%clk 0:03:44.9]} 17... Bxd6 {[%clk 0:02:31.5]} 18. exf5+
{[%clk 0:03:42.7]} 18... Kf8 {[%clk 0:02:24.5]} 19. Qc3 {[%clk 0:03:29.8]} 19...
Kf7 {[%clk 0:01:57.1]} 20. Qxc6 {[%clk 0:03:23.8]} 20... Be2 {[%clk 0:01:37.8]}
21. Re1 {[%clk 0:03:12]} 21... Rae8 {[%clk 0:01:29.1]} 22. Rxe2 {[%clk
0:03:05.9]} 22... Rxe2 {[%clk 0:01:04.3]} 23. Qc4+ {[%clk 0:03:03.6]} 23... Ke7
{[%clk 0:01:01.6]} 24. Qxe2+ {[%clk 0:03:02]} 24... Kd7 {[%clk 0:01:00.5]} 25.
Qe6+ {[%clk 0:02:56.7]} 25... Kd8 {[%clk 0:00:57.1]} 26. Qf6+ {[%clk 0:02:54.3]}
1-0

[Event "Live Chess"]
[Site "Chess.com"]
[Date "2023.05.21"]
[Round "-"]
[White "whatnot126"]
[Black "Conradical12"]
[Result "1-0"]
[WhiteElo "2051"]
[BlackElo "1570"]
[TimeControl "300"]
[EndTime "5:51:42 PDT"]
[Termination "whatnot126 won by resignation"]

1. e4 {[%clk 0:04:58.9]} 1... e5 {[%clk 0:04:58.5]} 2. Nf3 {[%clk 0:04:57.6]}
2... Nc6 {[%clk 0:04:55.8]} 3. d4 {[%clk 0:04:56.9]} 3... exd4 {[%clk
0:04:52.6]} 4. Bc4 {[%clk 0:04:55.2]} 4... Bc5 {[%clk 0:04:48.8]} 5. c3 {[%clk
0:04:53.2]} 5... Nf6 {[%clk 0:04:36.2]} 6. O-O {[%clk 0:04:47.5]} 6... O-O
{[%clk 0:04:34.5]} 7. cxd4 {[%clk 0:04:46.5]} 7... Bb6 {[%clk 0:04:30.4]} 8. d5
{[%clk 0:04:40.1]} 8... Ne7 {[%clk 0:04:28.2]} 9. e5 {[%clk 0:04:35.1]} 9... Ne4
{[%clk 0:04:24.2]} 10. Qe2 {[%clk 0:04:15.8]} 10... Bxf2+ {[%clk 0:04:17.3]} 11.
Rxf2 {[%clk 0:04:14.2]} 11... Nxf2 {[%clk 0:04:16.7]} 12. Qxf2 {[%clk
0:04:09.7]} 12... c6 {[%clk 0:04:16]} 13. d6 {[%clk 0:04:01.9]} 13... Nf5 {[%clk
0:04:13.6]} 14. Ng5 {[%clk 0:03:46.3]} 14... Nh6 {[%clk 0:03:56.7]} 15. Nc3
{[%clk 0:03:42.2]} 15... a5 {[%clk 0:03:34.5]} 16. a4 {[%clk 0:03:38.8]} 16...
Qe8 {[%clk 0:03:27.7]} 17. Bf4 {[%clk 0:03:36.3]} 17... Kh8 {[%clk 0:03:22.8]}
18. Qh4 {[%clk 0:03:35.3]} 18... b5 {[%clk 0:03:13.7]} 19. axb5 {[%clk
0:03:33.7]} 19... cxb5 {[%clk 0:03:12.1]} 20. Nxb5 {[%clk 0:03:33.6]} 20... Ba6
{[%clk 0:03:09.6]} 21. Nc7 {[%clk 0:03:29.6]} 21... Qb8 {[%clk 0:03:05.6]} 1-0